fUST/lending_fUST_20250214
["ID","MTS","AMOUNT","RATE_DAILY","PERIOD"]
[353031324,1739497843010,-249.0,0.00014059,2]
[353031325,1739497843019,-249.0,0.00014059,2]
[353031326,1739497843029,-249.0,0.00014059,2]
[353031327,1739497843039,-249.0,0.00014059,2]
[353031328,1739497843049,-249.0,0.00014059,2]
[353031335,1739497843182,-249.0,0.00014059,2]
[353031337,1739497843192,-249.0,0.00014059,2]
[353031338,1739497843202,-249.0,0.00014059,2]
[353031339,1739497843211,-249.0,0.00014059,2]
[353031340,1739497843221,-249.0,0.00014059,2]
[353031341,1739497843231,-249.0,0.00014059,2]
[353031342,1739497843240,-249.0,0.00014059,2]
[353031343,1739497843250,-249.0,0.00014059,2]
[353031344,1739497843259,-249.0,0.00014059,2]
[353031345,1739497843267,-153.0,0.00014059,2]
[353031346,1739497843278,-153.0,0.00014059,2]
[353031347,1739497843288,-153.0,0.00014059,2]
[353031348,1739497843297,-153.0,0.00014059,2]
[353031349,1739497843307,-153.0,0.00014059,2]
[353031350,1739497843319,-153.0,0.00014059,2]
[353031351,1739497843328,-153.0,0.00014059,2]
[353031352,1739497843338,-153.0,0.00014059,2]
[353031353,1739497843353,-153.0,0.00014059,2]
[353031354,1739497843363,-153.0,0.00014059,2]
[353031355,1739497843372,-249.0,0.00014059,2]
[353031356,1739497843382,-249.0,0.00014059,2]
[353031357,1739497843393,-249.0,0.00014059,2]
[353031358,1739497843402,-249.0,0.00014059,2]
[353031359,1739497843411,-249.0,0.00014059,2]
[353031360,1739497843421,-249.0,0.00014059,2]
[353031361,1739497843430,-249.0,0.00014059,2]
[353031362,1739497843439,-249.0,0.00014059,2]
[353031363,1739497843448,-249.0,0.00014059,2]
[353031364,1739497843457,-249.0,0.00014059,2]
[353031365,1739497843466,-249.0,0.00014059,2]
[353031366,1739497843475,-249.0,0.00014059,2]
[353031367,1739497843486,-249.0,0.00014059,2]
[353031368,1739497843495,-249.0,0.00014059,2]
[353031369,1739497843505,-249.0,0.00014059,2]
[353031370,1739497843517,-153.0,0.00014059,2]
[353031371,1739497843527,-153.0,0.00014059,2]
[353031372,1739497843536,-153.0,0.00014059,2]
[353031373,1739497843546,-153.0,0.00014059,2]
[353031374,1739497843556,-153.0,0.00014059,2]
[353031375,1739497843567,-153.0,0.00014059,2]
[353031376,1739497843576,-153.0,0.00014059,2]
[353031377,1739497843585,-153.0,0.00014059,2]
[353031378,1739497843594,-153.0,0.00014059,2]
[353031379,1739497843605,-153.0,0.00014059,2]
[353031380,1739497843614,-249.0,0.00014059,2]
[353031381,1739497843623,-249.0,0.00014059,2]
[353031382,1739497843634,-249.0,0.00014059,2]
[353031383,1739497843644,-249.0,0.00014059,2]
[353031384,1739497843654,-249.0,0.00014059,2]
[353031385,1739497843665,-153.0,0.00014059,2]
[353031386,1739497843674,-153.0,0.00014059,2]
[353031387,1739497843684,-153.0,0.00014059,2]
[353031388,1739497843695,-153.0,0.00014059,2]
[353031389,1739497843706,-153.0,0.00014059,2]
[353031390,1739497843716,-249.0,0.00014059,2]
[353031391,1739497843726,-249.0,0.00014059,2]
[353031392,1739497843736,-249.0,0.00014059,2]
[353031393,1739497843748,-249.0,0.00014059,2]
[353031394,1739497843758,-249.0,0.00014059,2]
[353031395,1739497843768,-249.0,0.00014059,2]
[353031396,1739497843777,-249.0,0.00014059,2]
[353031397,1739497843787,-249.0,0.00014059,2]
[353031398,1739497843799,-249.0,0.00014059,2]
[353031399,1739497843810,-249.0,0.00014059,2]
[353031400,1739497843820,-249.0,0.00014059,2]
[353031401,1739497843829,-249.0,0.00014059,2]
[353031402,1739497843838,-249.0,0.00014059,2]
[353031403,1739497843848,-249.0,0.00014059,2]
[353031404,1739497843858,-249.0,0.00014059,2]
[353031405,1739497843867,-249.0,0.00014059,2]
[353031406,1739497843876,-249.0,0.00014059,2]
[353031407,1739497843886,-153.0,0.00014059,2]
[353031408,1739497843895,-153.0,0.00014059,2]
[353031409,1739497843904,-153.0,0.00014059,2]
[353031410,1739497843914,-153.0,0.00014059,2]
[353031411,1739497843923,-153.0,0.00014059,2]
[353031412,1739497843933,-153.0,0.00014059,2]
[353031413,1739497843943,-153.0,0.00014059,2]
[353031414,1739497843953,-153.0,0.00014059,2]
[353031415,1739497843962,-153.0,0.00014059,2]
[353031416,1739497843973,-153.0,0.00014059,2]
[353031417,1739497843983,-153.0,0.00014059,2]
[353031418,1739497843994,-249.0,0.00014059,2]
[353031419,1739497844007,-249.0,0.00014059,2]
[353031420,1739497844018,-249.0,0.00014059,2]
[353031421,1739497844028,-249.0,0.00014059,2]
[353031422,1739497844037,-249.0,0.00014059,2]
[353031423,1739497844047,-249.0,0.00014059,2]
[353031424,1739497844056,-249.0,0.00014059,2]
[353031425,1739497844066,-249.0,0.00014059,2]
[353031426,1739497844077,-249.0,0.00014059,2]
[353031427,1739497844087,-249.0,0.00014059,2]
[353031428,1739497844097,-249.0,0.00014059,2]
[353031429,1739497844107,-249.0,0.00014059,2]
[353031430,1739497844116,-249.0,0.00014059,2]
[353031431,1739497844126,-249.0,0.00014059,2]
[353031432,1739497844135,-153.0,0.00014059,2]
[353031433,1739497844144,-153.0,0.00014059,2]
[353031434,1739497844154,-153.0,0.00014059,2]
[353031435,1739497844163,-153.0,0.00014059,2]
[353031436,1739497844174,-153.0,0.00014059,2]
[353031437,1739497844183,-153.0,0.00014059,2]
[353031438,1739497844193,-153.0,0.00014059,2]
[353031439,1739497844202,-153.0,0.00014059,2]
[353031440,1739497844211,-153.0,0.00014059,2]
[353031441,1739497844220,-153.0,0.00014059,2]
[353031442,1739497844231,-249.0,0.00014059,2]
[353031443,1739497844240,-249.0,0.00014059,2]
[353031444,1739497844248,-249.0,0.00014059,2]
[353031445,1739497844258,-249.0,0.00014059,2]
[353031446,1739497844267,-249.0,0.00014059,2]
[353031447,1739497844277,-249.0,0.00014059,2]
[353031448,1739497844287,-249.0,0.00014059,2]
[353031449,1739497844296,-249.0,0.00014059,2]
[353031450,1739497844305,-249.0,0.00014059,2]
[353031451,1739497844315,-249.0,0.00014059,2]
[353031452,1739497844324,-249.0,0.00014059,2]
[353031453,1739497844333,-249.0,0.00014059,2]
[353031454,1739497844342,-249.0,0.00014059,2]
[353031455,1739497844351,-249.0,0.00014059,2]
[353031456,1739497844361,-153.0,0.00014059,2]
[353031457,1739497844371,-153.0,0.00014059,2]
[353031458,1739497844380,-153.0,0.00014059,2]
[353031459,1739497844389,-153.0,0.00014059,2]
[353031460,1739497844399,-153.0,0.00014059,2]
[353031461,1739497844408,-153.0,0.00014059,2]
[353031462,1739497844417,-153.0,0.00014059,2]
[353031463,1739497844426,-153.0,0.00014059,2]
[353031464,1739497844435,-153.0,0.00014059,2]
[353031465,1739497844445,-153.0,0.00014059,2]
[353031466,1739497844455,-249.0,0.00014059,2]
[353031467,1739497844464,-249.0,0.00014059,2]
[353031468,1739497844473,-249.0,0.00014059,2]
[353031469,1739497844483,-249.0,0.00014059,2]
[353031470,1739497844492,-249.0,0.00014059,2]
[353031471,1739497844501,-249.0,0.00014059,2]
[353031472,1739497844511,-249.0,0.00014059,2]
[353031473,1739497844521,-249.0,0.00014059,2]
[353031474,1739497844530,-249.0,0.00014059,2]
[353031475,1739497844539,-249.0,0.00014059,2]
[353031476,1739497844548,-249.0,0.00014059,2]
[353031477,1739497844558,-249.0,0.00014059,2]
[353031478,1739497844568,-249.0,0.00014059,2]
[353031479,1739497844577,-249.0,0.00014059,2]
[353031480,1739497844587,-249.0,0.00014059,2]
[353031481,1739497844596,-249.0,0.00014059,2]
[353031482,1739497844605,-153.0,0.00014059,2]
[353031483,1739497844615,-153.0,0.00014059,2]
[353031484,1739497844624,-153.0,0.00014059,2]
[353031485,1739497844633,-153.0,0.00014059,2]
[353031486,1739497844643,-153.0,0.00014059,2]
[353031487,1739497844653,-153.0,0.00014059,2]
[353031488,1739497844662,-153.0,0.00014059,2]
[353031489,1739497844672,-153.0,0.00014059,2]
[353031490,1739497844682,-153.0,0.00014059,2]
[353031491,1739497844691,-153.0,0.00014059,2]
[353031492,1739497844701,-500.0,0.00014109,2]
[353031493,1739497844710,-500.0,0.00014109,2]
[353031494,1739497844720,-806.19,0.00014109,2]
[353031495,1739497844729,-648.77,0.00014109,2]
[353031496,1739497844739,-500.0,0.00014109,2]
[353031497,1739497844748,-500.0,0.00014109,2]
[353031498,1739497844759,-500.0,0.00014109,2]
[353031499,1739497844769,-500.0,0.00014109,2]
[353031500,1739497844779,-734.12,0.00014109,2]
[353031501,1739497844789,-679.1,0.00014109,2]
[353031502,1739497844799,-443.71567212,0.00014109,2]
[353031503,1739497844808,-1248.89,0.00014109,2]
[353031504,1739497844818,-500.0,0.00014109,2]
[353031505,1739497844827,-250.26206782,0.00014109,2]
[353031506,1739497844836,-973.4,0.00014109,2]
[353031507,1739497844846,-500.0,0.00014109,2]
[353031508,1739497844855,-500.0,0.00014109,2]
[353031509,1739497844865,-4476.38,0.00014109,2]
[353031510,1739497844875,-500.0,0.00014109,2]
[353031511,1739497844884,-1368.01,0.00014109,2]
[353031512,1739497844893,-884.56,0.00014109,2]
[353031513,1739497844903,-2257.4,0.00014109,2]
[353031514,1739497844912,-1004.88,0.00014109,2]
[353031515,1739497844923,-13594.89,0.00014109,2]
[353031516,1739497844932,-161.118796,0.00014112,5]
[353031517,1739497844943,-162.597312,0.00014112,5]
[353031518,1739497844952,-270.97322717,0.00014114,2]
[353031519,1739497844962,-500.0,0.00014134,2]
[353031520,1739497844971,-910.51554307,0.0001414,2]
[353031521,1739497844980,-353.219179,0.00014164,2]
[353031522,1739497844990,-1000.0,0.00014185,2]
[353031523,1739497845003,-500.0,0.00014191,2]
[353031524,1739497845018,-500.0,0.00014191,2]
[353031525,1739497845027,-806.19,0.00014191,2]
[353031526,1739497845037,-648.77,0.00014191,2]
[353031527,1739497845047,-500.0,0.00014191,2]
[353031528,1739497845057,-500.0,0.00014191,2]
[353031529,1739497845067,-500.0,0.00014191,2]
[353031530,1739497845077,-500.0,0.00014191,2]
[353031531,1739497845086,-734.12,0.00014191,2]
[353031532,1739497845097,-679.1,0.00014191,2]
[353031533,1739497845107,-1248.89,0.00014191,2]
[353031534,1739497845117,-500.0,0.00014191,2]
[353031535,1739497845127,-973.4,0.00014191,2]
[353031536,1739497845136,-500.0,0.00014191,2]
[353031537,1739497845145,-546.7940582,0.00014191,2]
[353031538,1739497845155,-4476.38,0.00014191,2]
[353031539,1739497845164,-500.0,0.00014191,2]
[353031540,1739497845174,-1368.01,0.00014191,2]
[353031541,1739497845184,-884.56,0.00014191,2]
[353031542,1739497845194,-2257.4,0.00014191,2]
[353031543,1739497845203,-1004.88,0.00014191,2]
[353031544,1739497845214,-13594.89,0.00014191,2]
[353031545,1739497845223,-489.301,0.00014199,2]
[353031546,1739497845233,-1000.0,0.00014221,2]
[353031547,1739497845243,-500.0,0.00014246,2]
[353031548,1739497845253,-565.2324839,0.00014254,2]
[353031549,1739497845263,-500.0,0.00014271,2]
[353031550,1739497845273,-1000.0,0.00014271,2]
[353031551,1739497845283,-500.0,0.00014273,2]
[353031552,1739497845292,-500.0,0.00014273,2]
[353031553,1739497845302,-806.19,0.00014273,2]
[353031554,1739497845311,-648.77,0.00014273,2]
[353031555,1739497845322,-500.0,0.00014273,2]
[353031557,1739497845331,-500.0,0.00014273,2]
[353031559,1739497845341,-500.0,0.00014273,2]
[353031560,1739497845351,-500.0,0.00014273,2]
[353031561,1739497845361,-734.12,0.00014273,2]
[353031562,1739497845372,-151.16097,0.00014273,2]
[353031563,1739497845382,-679.1,0.00014273,2]
[353031564,1739497845392,-268.370867,0.00014273,2]
[353031565,1739497845402,-268.370867,0.00014273,2]
[353031566,1739497845412,-169.51354,0.00014273,2]
[353031567,1739497845422,-1248.89,0.00014273,2]
[353031568,1739497845432,-500.0,0.00014273,2]
[353031569,1739497845442,-396.15397,0.00014273,2]
[353031570,1739497845453,-396.15397,0.00014273,2]
[353031571,1739497845463,-973.4,0.00014273,2]
[353031572,1739497845472,-500.0,0.00014273,2]
[353031573,1739497845482,-4476.38,0.00014273,2]
[353031575,1739497845492,-500.0,0.00014273,2]
[353031576,1739497845502,-1368.01,0.00014273,2]
[353031577,1739497845513,-884.56,0.00014273,2]
[353031579,1739497845524,-2257.4,0.00014273,2]
[353031581,1739497845535,-1004.88,0.00014273,2]
[353031582,1739497845545,-353.440324,0.00014273,2]
[353031583,1739497845555,-353.440324,0.00014273,2]
[353031584,1739497845565,-1985.447,0.00014277,2]
[353031586,1739497845575,-539.406,0.00014277,2]
[353031587,1739497845585,-396.0,0.00014277,2]
[353031588,1739497845594,-238.722,0.00014277,2]
[353031589,1739497845604,-1000.0,0.00014282,2]
[353031590,1739497845614,-1000.0,0.00014286,2]
[353031591,1739497845623,-1004.7268243,0.0001429,2]
[353031592,1739497845633,-200.0,0.000143,3]
[353031593,1739497845643,-200.0,0.000143,4]
[353031594,1739497845652,-200.0,0.000143,5]
[353031595,1739497845661,-200.0,0.000143,6]
[353031596,1739497845671,-200.0,0.000143,7]
[353031597,1739497845681,-1162.34928517,0.000143,2]
[353031598,1739497845690,-1000.0,0.00014307,2]
[353031599,1739497845699,-910.51554307,0.00014348,2]
[353031600,1739497845708,-500.0,0.00014356,2]
[353031601,1739497845718,-500.0,0.00014356,2]
[353031602,1739497845728,-806.19,0.00014356,2]
[353031603,1739497845738,-648.77,0.00014356,2]
[353031604,1739497845748,-500.0,0.00014356,2]
[353031605,1739497845758,-347.68390049,0.00014356,2]
[353031606,1739497845768,-578.92282924,0.00014356,2]
[353031607,1739497845778,-151.0,0.00014356,2]
[353031608,1739497845788,-151.0,0.00014356,2]
[353031609,1739497845799,-500.0,0.00014356,2]
[353031610,1739497845808,-450.753268,0.00014356,2]
[353031611,1739497845819,-450.753268,0.00014356,2]
[353031612,1739497845829,-734.12,0.00014356,2]
[353031613,1739497845839,-151.0,0.00014356,2]
[353031615,1739497845949,-151.0,0.00014356,2]
[353031616,1739497845959,-679.1,0.00014356,2]
[353031617,1739497845969,-1248.89,0.00014356,2]
[353031618,1739497845979,-500.0,0.00014356,2]
[353031619,1739497845989,-973.4,0.00014356,2]
[353031620,1739497845999,-500.0,0.00014356,2]
[353031621,1739497846011,-4476.38,0.00014356,2]
[353031622,1739497846021,-500.0,0.00014356,2]
[353031623,1739497846031,-1368.01,0.00014356,2]
[353031624,1739497846041,-884.56,0.00014356,2]
[353031625,1739497846051,-2257.4,0.00014356,2]
[353031626,1739497846061,-1004.88,0.00014356,2]
[353031627,1739497846072,-900.0,0.00014363,2]
[353031628,1739497846083,-1000.0,0.00014371,2]
[353031629,1739497846093,-290.20741648,0.00014397,2]
[353031630,1739497846103,-500.0,0.00014399,2]
[353031631,1739497846113,-270.77385282,0.00014399,2]
[353031632,1739497846123,-500.0,0.00014399,2]
[353031633,1739497846133,-500.0,0.00014399,2]
[353031634,1739497846143,-489.95873002,0.00014399,2]
[353031635,1739497846154,-500.0,0.00014399,2]
[353031636,1739497846163,-500.0,0.00014399,2]
[353031637,1739497846173,-482.08176051,0.00014399,2]
[353031638,1739497846183,-160.39082223,0.00014399,2]
[353031639,1739497846192,-1071541.12265493,0.000144,5]
[353031640,1739497846383,-3303.7,0.00013863,2]
[353031641,1739497846394,-3303.7,0.00013945,2]
[353031642,1739497846404,-3303.7,0.00014027,2]
[353031643,1739497846415,-3303.7,0.00014109,2]
[353031644,1739497846425,-3303.7,0.00014191,2]
[353031645,1739497846435,-13594.89,0.00014273,2]
[353031646,1739497846447,-3303.7,0.00014273,2]
[353031647,1739497846456,-9231.45546981,0.00014356,2]
[353031648,1739497846468,-4363.43453019,0.00014356,2]
[353031649,1739497846477,-113905.74826836,0.000144,5]
[353031650,1739497846489,-659.64318801,0.000144,5]
[353031651,1739497846501,-2102.12817358,0.000144,5]
[353031652,1739497846797,-486.74669334,0.00013698,2]
[353031653,1739497846809,-14.54296986,0.00013698,2]
[353031654,1739497846819,-500.0,0.00013698,2]
[353031655,1739497846829,-232.72774095,0.00013698,2]
[353031656,1739497846839,-500.0,0.0001378,2]
[353031657,1739497846848,-3303.7,0.00014356,2]
[353031658,1739497846858,-888.43690619,0.000144,5]
[353031659,1739497848111,-0.0006823,0.00013698,2]
[353031660,1739497848122,-500.58334653,0.00013698,2]
[353031661,1739497848139,-500.0,0.00013863,2]
[353031662,1739497848148,-500.0,0.00013945,2]
[353031663,1739497848158,-500.0,0.00014027,2]
[353031664,1739497848167,-500.0,0.00014109,2]
[353031665,1739497848177,-500.0,0.00014191,2]
[353031666,1739497848187,-507.84,0.00014273,2]
[353031667,1739497848197,-155.336165,0.00014273,2]
[353031668,1739497848206,-5682.36851869,0.000143,2]
[353031669,1739497848215,-74272.94400958,0.000144,5]
[353031671,1739498373488,646.1608064,0.00017937,120]
[353031672,1739498373511,0.0391936,0.00017937,120]
[353031677,1739498465355,821.80968041,0.00017937,120]
[353031678,1739498818133,-178.0341152,0.00012993,2]
[353031704,1739499032407,-348.50499,0.00010685,2]
[353031705,1739499032417,-145.14501,0.00012993,2]
[353031706,1739499032430,-476.8208748,0.00012993,2]
[353031707,1739499032441,-183.46672015,0.0001368,2]
[353031708,1739499032451,-300.0,0.00013697,2]
[353031709,1739499032460,-191.25396495,0.00013698,2]
[353031710,1739499032471,-502.12423525,0.00013698,2]
[353031711,1739499032480,-501.39753166,0.00013698,2]
[353031712,1739499032490,-501.70606134,0.00013698,2]
[353031713,1739499032500,-500.47929665,0.00013698,2]
[353031714,1739499032509,-504.51214163,0.00013698,2]
[353031715,1739499032519,-501.47526351,0.00013698,2]
[353031716,1739499032528,-500.71081145,0.00013698,2]
[353031717,1739499032539,-501.83116426,0.00013698,2]
[353031718,1739499032551,-500.0,0.00013698,2]
[353031719,1739499032562,-1000.0,0.00013698,2]
[353031720,1739499032571,-286.28826365,0.00013698,2]
[353031721,1739499032581,-500.75022768,0.00013698,2]
[353031722,1739499032591,-500.0,0.00013698,2]
[353031723,1739499032603,-500.20288085,0.00013698,2]
[353031724,1739499032613,-520.35060544,0.00013698,2]
[353031725,1739499032623,-264.01462895,0.00013698,2]
[353031726,1739499032633,-500.0,0.00013698,2]
[353031727,1739499032643,-501.10391091,0.00013698,2]
[353031728,1739499032655,-500.0,0.00013698,2]
[353031729,1739499032665,-683.94,0.00013698,2]
[353031730,1739499032674,-500.00691767,0.00013698,2]
[353031731,1739499032683,-500.0,0.00013698,2]
[353031732,1739499032693,-416.88496092,0.00013698,2]
[353031733,1739499032704,-508.86327516,0.00013698,2]
[353031734,1739499032715,-485.61910148,0.00013698,2]
[353031735,1739499032755,-18.50849772,0.00013698,2]
[353031736,1739499032765,-503.06739088,0.00013698,2]
[353031737,1739499032774,-230.77665532,0.00013698,2]
[353031738,1739499032787,-269.22334468,0.00013698,2]
[353031739,1739499032797,-500.0,0.00013698,2]
[353031740,1739499032808,-500.0,0.00013698,2]
[353031741,1739499032819,-502.31669854,0.00013698,2]
[353031742,1739499032828,-500.0,0.00013698,2]
[353031743,1739499032839,-158.58751098,0.00013698,2]
[353031752,1739499038042,-341.41248902,0.00013698,2]
[353031753,1739499038052,-418.74102626,0.00013698,2]
[353031754,1739499038065,-82.13963069,0.00013698,2]
[353031755,1739499038074,-560.26965691,0.00013698,2]
[353031756,1739499038088,-503.8143556,0.00013698,2]
[353031757,1739499038098,-500.0,0.00013698,2]
[353031758,1739499038108,-505.10758628,0.00013698,2]
[353031759,1739499038117,-500.0,0.00013698,2]
[353031760,1739499038127,-501.24443951,0.00013698,2]
[353031761,1739499038137,-500.0,0.00013698,2]
[353031762,1739499038147,-500.0,0.00013698,2]
[353031763,1739499038158,-500.0,0.00013698,2]
[353031764,1739499038168,-500.0,0.00013698,2]
[353031765,1739499038177,-500.0,0.00013698,2]
[353031766,1739499038186,-501.71688862,0.00013698,2]
[353031767,1739499038196,-502.96118776,0.00013698,2]
[353031768,1739499038206,-500.0,0.00013698,2]
[353031769,1739499038216,-500.0,0.00013698,2]
[353031771,1739499038225,-500.0,0.00013698,2]
[353031773,1739499038235,-501.27529834,0.00013698,2]
[353031774,1739499038244,-502.15083505,0.00013698,2]
[353031775,1739499038253,-306.50525384,0.00013698,2]
[353031776,1739499038263,-501.51388736,0.00013698,2]
[353031777,1739499038273,-500.0,0.00013698,2]
[353031778,1739499038283,-502.86930919,0.00013698,2]
[353031779,1739499038292,-501.14307702,0.00013698,2]
[353031780,1739499038302,-500.0,0.00013698,2]
[353031781,1739499038311,-500.0,0.00013698,2]
[353031782,1739499038321,-500.0,0.00013698,2]
[353031783,1739499038330,-500.0,0.00013698,2]
[353031784,1739499038340,-501.61753902,0.00013698,2]
[353031785,1739499038351,-500.0,0.00013698,2]
[353031786,1739499038360,-501.0809034,0.00013698,2]
[353031787,1739499038370,-500.0,0.00013698,2]
[353031788,1739499038379,-365.74035493,0.00013698,2]
[353031789,1739499038394,-502.32612349,0.00013698,2]
[353031790,1739499038404,-500.0,0.00013698,2]
[353031791,1739499038414,-500.0,0.00013698,2]
[353031792,1739499038424,-503.39844797,0.00013698,2]
[353031793,1739499038435,-504.77611426,0.00013698,2]
[353031794,1739499038445,-501.36890497,0.00013698,2]
[353031795,1739499038454,-500.0,0.00013698,2]
[353031796,1739499038464,-501.52626314,0.00013698,2]
[353031797,1739499038475,-502.53372513,0.00013698,2]
[353031798,1739499038485,-500.55538025,0.00013698,2]
[353031799,1739499038496,-503.34988455,0.00013698,2]
[353031800,1739499038505,-501.56164758,0.00013698,2]
[353031801,1739499038515,-504.51833978,0.00013698,2]
[353031802,1739499038525,-500.47713836,0.00013698,2]
[353031803,1739499038535,-523.70201664,0.00013698,2]
[353031804,1739499038544,-504.94848358,0.00013698,2]
[353031805,1739499038553,-247.54013742,0.00013698,2]
[353031806,1739499038563,-289.3897038,0.00013698,2]
[353031807,1739499038573,-502.97174885,0.00013698,2]
[353031808,1739499038582,-502.18565901,0.00013698,2]
[353031809,1739499038591,-493.76042707,0.00013698,2]
[353031810,1739499038844,-8.33116215,0.00013698,2]
[353031811,1739499038854,-414.79294701,0.00013698,2]
[353031812,1739499038864,-37.88657735,0.00013698,2]
[353031813,1739499038877,-463.46487081,0.00013698,2]
[353031814,1739499038886,-103.26309757,0.00013698,2]
[353031842,1739499043152,-397.88623475,0.00013698,2]
[353031843,1739499043164,-502.19471495,0.00013698,2]
[353031844,1739499043174,-500.96981815,0.00013698,2]
[353031845,1739499043183,-502.34828945,0.00013698,2]
[353031846,1739499043193,-597.6018471,0.00013698,2]
[353031847,1739499043203,-500.79601475,0.00013698,2]
[353031848,1739499043212,-111.97552822,0.00013698,2]
[353031867,1739499046097,-391.56399333,0.00013698,2]
[353031868,1739499046107,-227.04788856,0.00013698,2]
[353031869,1739499046118,-501.11839112,0.00013698,2]
[353031870,1739499046128,-502.39527719,0.00013698,2]
[353031871,1739499046139,-500.0,0.00013698,2]
[353031872,1739499046148,-501.89775954,0.00013698,2]
[353031873,1739499046160,-502.04384225,0.00013698,2]
[353031874,1739499046172,-504.20832715,0.00013698,2]
[353031875,1739499046181,-155.95,0.00013698,2]
[353031876,1739499046191,-500.0,0.00013698,2]
[353031877,1739499046201,-501.61473268,0.00013698,2]
[353031878,1739499046211,-503.79799378,0.00013698,2]
[353031879,1739499046220,-510.06895674,0.00013698,2]
[353031880,1739499046230,-500.0,0.00013698,2]
[353031881,1739499046240,-500.0,0.00013698,2]
[353031882,1739499046249,-500.0,0.00013698,2]
[353031883,1739499046258,-500.0,0.00013698,2]
[353031884,1739499046268,-500.0,0.00013698,2]
[353031885,1739499046278,-711.07,0.00013698,2]
[353031886,1739499046288,-500.0,0.00013698,2]
[353031887,1739499046298,-500.0,0.00013698,2]
[353031888,1739499046307,-500.0,0.00013698,2]
[353031889,1739499046317,-503.12324049,0.00013698,2]
[353031890,1739499046327,-500.0,0.00013698,2]
[353031891,1739499046336,-500.0,0.00013698,2]
[353031892,1739499046346,-502.71272263,0.00013698,2]
[353031893,1739499046356,-628.62,0.00013698,2]
[353031894,1739499046366,-500.0,0.00013698,2]
[353031895,1739499046376,-508.16178603,0.00013698,2]
[353031896,1739499046386,-500.17651218,0.00013698,2]
[353031897,1739499046401,-500.0,0.00013698,2]
[353031898,1739499046411,-202.96783426,0.00013698,2]
[353031899,1739499046429,-301.70588091,0.00013698,2]
[353031900,1739499046441,-500.81348059,0.00013698,2]
[353031901,1739499046450,-502.25765257,0.00013698,2]
[353031902,1739499046460,-502.77288395,0.00013698,2]
[353031903,1739499046471,-502.64202032,0.00013698,2]
[353031904,1739499046481,-500.0,0.00013698,2]
[353031905,1739499046490,-502.93258938,0.00013698,2]
[353031906,1739499046500,-500.93421347,0.00013698,2]
[353031907,1739499046509,-911.17,0.00013698,2]
[353031908,1739499046519,-1.01170666,0.00013698,2]
[353031909,1739499046531,-503.64940111,0.00013698,2]
[353031910,1739499046543,-501.49461185,0.00013698,2]
[353031911,1739499046552,-500.94811497,0.00013698,2]
[353031912,1739499046562,-506.80596201,0.00013698,2]
[353031913,1739499046572,-500.0,0.00013698,2]
[353031914,1739499046581,-500.0,0.00013698,2]
[353031915,1739499046590,-506.63809893,0.00013698,2]
[353031916,1739499046600,-501.13113356,0.00013698,2]
[353031917,1739499046610,-500.0,0.00013698,2]
[353031918,1739499046619,-500.86885034,0.00013698,2]
[353031919,1739499046629,-507.97504538,0.00013698,2]
[353031920,1739499046639,-500.39728803,0.00013698,2]
[353031921,1739499046649,-501.11272492,0.00013698,2]
[353031922,1739499046658,-502.81629143,0.00013698,2]